bitfinex/quotes_SOLUSD_20250210
["timestamp","ask_amount","ask_price","bid_price","bid_amount"]
[1739189631957,36.98886654,204.34,204.33,0.03]
[1739189632169,37.98886654,204.34,204.33,0.03]
[1739189632370,20.0,204.3,204.26,0.03]
[1739189632561,81.81556068,204.29,204.26,0.03]
[1739189632965,4.8952,204.28,204.26,0.03]
[1739189633872,85.895,204.29,204.26,0.03]
[1739189634062,81.0,204.29,204.26,0.03]
[1739189634369,22.29886654,204.27,204.26,0.03]
[1739189634563,23.21719061,204.27,204.26,0.03]
[1739189635279,28.11259061,204.27,204.26,0.03]
[1739189636060,42.80259061,204.27,204.26,0.03]
[1739189639182,42.80259061,204.27,204.26,0.0001]
[1739189640879,28.11259061,204.27,204.26,0.0001]
[1739189641683,14.44976208,204.27,204.26,0.0001]
[1739189641981,4.8954,204.27,204.26,0.0001]
[1739189642664,0.91818435,204.28,204.26,0.0001]
[1739189642860,20.0,204.27,204.26,0.0001]
[1739189643876,25.81350435,204.27,204.2,5.45732887]
[1739189644087,4.8954,204.27,204.2,5.45732887]
[1739189644265,4.8954,204.27,204.21,5.52978115]
[1739189644465,25.813514,204.28,204.22,5.52978115]
[1739189644687,25.813514,204.28,204.2,5.52978115]
[1739189644893,25.813514,204.28,204.21,5.52978115]
[1739189645091,20.0,204.28,204.22,5.52978115]
[1739189645864,20.0,204.28,204.26,0.03]
[1739189646384,0.063,204.27,204.26,0.03]
[1739189647485,0.063,204.27,204.25,5.05978115]
[1739189647686,0.063,204.27,204.26,5.52978115]
[1739189656092,0.063,204.27,204.24,5.52978115]
[1739189657703,0.063,204.27,204.19,8.1634]
[1739189657704,0.063,204.27,204.22,5.52978115]
[1739189657889,0.063,204.27,204.26,0.03]
[1739189662115,26.51090735,204.27,204.26,0.03]
[1739189662409,40.17373588,204.27,204.26,0.03]
[1739189663820,45.06913588,204.27,204.26,0.03]
[1739189664197,72.02783588,204.27,204.16,5.52978115]
[1739189664400,20.0,204.22,204.16,5.52978115]
[1739189664618,0.91844204,204.21,204.14,12.19578115]
[1739189665106,6.44822319,204.21,204.14,5.52978115]
[1739189665311,4.8971,204.2,204.12,5.52978115]
[1739189665509,0.91852337,204.19,204.12,5.52978115]
[1739189665912,11.34519023,204.21,204.14,5.52978115]
[1739189666406,0.91850908,204.21,204.15,5.52978115]
[1739189666608,106.52978115,204.22,204.15,5.52978115]
[1739189666808,111.42648115,204.22,204.15,5.52978115]
[1739189667422,101.0,204.22,204.17,5.52978115]
[1739189669192,81.0,204.22,204.21,5.52978115]
[1739189670802,81.0,204.26,204.21,5.52978115]
[1739189670999,0.063,204.27,204.23,5.52978115]
[1739189673003,0.063,204.27,204.24,5.52978115]
[1739189673194,0.063,204.27,204.23,5.52978115]
[1739189673528,0.063,204.27,204.22,5.52978115]
[1739189674016,0.063,204.27,204.23,5.52978115]
[1739189674721,81.0,204.26,204.24,5.52978115]
[1739189675109,81.0,204.26,204.23,5.52978115]
[1739189678820,81.0,204.26,204.24,5.52978115]
[1739189683742,0.063,204.27,204.25,0.25098]
[1739189683915,0.063,204.27,204.26,5.52978115]
[1739189693242,0.063,204.27,204.26,19.19260968]
[1739189693449,0.063,204.27,204.26,48.60103428]
[1739189693947,0.063,204.27,204.26,25.51190968]
[1739189694143,0.063,204.27,204.26,11.84908115]
[1739189694338,0.063,204.27,204.26,5.55978115]
[1739189697544,0.063,204.27,204.26,0.03]
[1739189700431,0.063,204.27,204.26,5.55978115]
[1739189700941,0.063,204.27,204.26,0.03]
[1739189705145,0.063,204.27,204.26,5.52978115]
[1739189706233,0.063,204.27,204.26,5.55978115]
[1739189707045,0.063,204.27,204.26,0.03]
[1739189707245,0.063,204.27,204.26,5.55978115]
[1739189711752,0.063,204.27,204.26,19.22260968]
[1739189712660,81.0,204.34,204.29,0.25098]
[1739189712953,0.063,204.36,204.33,5.52978115]
[1739189713273,0.063,204.36,204.35,5.52978115]
[1739189715164,0.063,204.36,204.32,5.52978115]
[1739189715467,0.063,204.36,204.31,5.52978115]
[1739189716062,0.063,204.36,204.3,5.52978115]
[1739189716256,81.063,204.36,204.3,5.52978115]
[1739189717976,81.063,204.36,204.32,5.52978115]
[1739189718856,81.063,204.36,204.31,5.52978115]
[1739189719067,85.9563,204.36,204.3,5.52978115]
[1739189719277,87.44751697,204.35,204.26,5.55978115]
[1739189719460,86.52978115,204.35,204.28,5.52978115]
[1739189719665,81.0,204.35,204.3,5.52978115]
[1739189719847,81.0,204.35,204.31,5.52978115]
[1739189720042,81.0,204.35,204.3,5.52978115]
[1739189720271,85.8935,204.35,204.29,5.52978115]
[1739189720474,92.34098865,204.35,204.27,5.52978115]
[1739189723467,81.9177075,204.35,204.28,5.52978115]
[1739189723664,81.0,204.35,204.29,5.52978115]
[1739189724468,81.0,204.35,204.3,5.52978115]
[1739189724677,81.0,204.35,204.31,5.52978115]
[1739189724880,81.0,204.35,204.33,5.52978115]
[1739189725471,81.0,204.35,204.31,5.52978115]
[1739189725967,81.0,204.35,204.33,5.52978115]
[1739189730181,0.063,204.36,204.34,5.52978115]
[1739189730488,0.063,204.36,204.35,5.52978115]
[1739189732092,0.063,204.36,204.35,19.19260968]
[1739189732681,0.063,204.46,204.39,13.66282853]
[1739189732883,0.063,204.46,204.45,5.52978115]
[1739189734597,0.063,204.46,204.45,5.78076115]
[1739189735177,0.063,204.46,204.45,5.52978115]
[1739189737299,0.063,204.46,171.55,7.14281519]
[1739189737300,0.063,204.46,204.36,6.496]
[1739189737502,87.44699288,204.45,204.37,5.52978115]
[1739189737687,81.0,204.45,204.39,5.52978115]
[1739189737998,81.0,204.45,204.44,5.52978115]
[1739189738201,0.063,204.46,204.44,5.52978115]
[1739189738506,0.063,204.46,204.45,5.52978115]
[1739189741386,0.063,204.46,204.45,5.78076115]
[1739189741706,0.063,204.46,204.45,5.52978115]
[1739189742100,0.063,204.46,204.44,5.52978115]
[1739189742399,0.063,204.46,204.4,7.9331]
[1739189742400,0.063,204.46,204.45,5.52978115]
[1739189745407,0.063,204.46,204.43,5.52978115]
[1739189745911,0.063,204.46,204.44,5.52978115]
[1739189746906,0.063,204.46,204.43,5.52978115]
[1739189747413,0.063,204.46,204.4,5.52978115]
[1739189747915,0.063,204.46,204.41,5.52978115]
[1739189748094,0.063,204.46,204.42,5.52978115]
[1739189748809,81.0,204.45,204.42,5.52978115]
[1739189749512,81.0,204.45,204.41,5.52978115]
[1739189749718,81.0,204.45,204.4,5.52978115]
[1739189749918,81.0,204.44,204.4,5.52978115]
[1739189750104,81.0,204.44,204.42,5.52978115]
[1739189750830,81.0,204.44,204.43,5.52978115]
[1739189753112,81.0,204.44,204.42,5.52978115]
[1739189753502,81.0,204.44,204.41,5.52978115]
[1739189753717,81.0,204.44,204.42,5.52978115]
[1739189754410,81.0,204.44,204.43,5.52978115]
[1739189754919,81.0,204.44,204.42,5.52978115]
[1739189755630,81.0,204.44,204.43,5.52978115]
[1739189760435,0.063,204.46,204.45,20.25098]
[1739189760634,0.063,204.46,204.45,39.19260968]
[1739189760835,0.063,204.46,204.45,5.52978115]
[1739189762238,0.063,204.46,204.45,19.19260968]
[1739189762818,0.063,204.46,204.45,40.19260968]
[1739189763834,0.063,204.48,204.47,1.0]
[1739189764041,0.063,204.48,204.47,6.52978115]
[1739189765520,0.063,204.48,204.47,21.19260968]
[1739189766638,0.063,204.48,204.47,43.31173428]
[1739189767227,0.063,204.55,204.51,20.25098]
[1739189767521,0.063,204.55,204.54,19.19260968]
[1739189768133,0.063,204.55,204.54,20.19260968]
[1739189768840,0.063,204.55,204.54,19.19260968]
[1739189770838,0.063,204.55,204.46,3.88231948]
[1739189771039,0.063,204.55,204.48,5.52978115]
[1739189771242,86.59278115,204.55,204.46,5.52978115]
[1739189771439,5.52978115,204.53,204.46,5.52978115]
[1739189771639,6.44680082,204.53,204.44,5.52978115]
[1739189771843,5.52978115,204.53,204.44,5.52978115]
[1739189772036,5.52978115,204.53,204.46,5.52978115]
[1739189772241,0.91700428,204.52,204.44,5.52978115]
[1739189772542,5.52978115,204.51,204.44,5.52978115]
[1739189772754,5.52978115,204.53,204.44,5.52978115]
[1739189772937,1.5782,204.54,204.48,5.52978115]
[1739189773650,1.5782,204.54,204.48,8.61797714]
[1739189774045,6.4672,204.54,204.48,8.61797714]
[1739189774259,9.53485039,204.53,204.45,8.61797714]
[1739189774762,14.42415039,204.53,204.45,8.61797714]
[1739189775266,8.61797714,204.53,204.45,8.61797714]
[1739189775639,81.0,204.52,204.45,8.61797714]
[1739189777057,81.0,204.52,204.47,8.61797714]
[1739189779573,80.89950954,204.52,204.47,8.64797714]
[1739189779880,80.96250954,204.52,204.47,8.64797714]
[1739189780459,85.85200954,204.52,204.47,8.64797714]
[1739189781564,80.89950954,204.51,204.47,8.64797714]
[1739189781947,85.78940954,204.51,204.47,0.03]
[1739189782138,80.89950954,204.5,204.47,0.03]
[1739189782343,80.89950954,204.49,204.47,0.03]
[1739189782645,80.89950954,204.48,204.47,0.03]
[1739189783460,85.78990954,204.48,204.47,0.03]
[1739189784166,80.89950954,204.48,204.47,0.03]
[1739189785760,83.78990954,204.48,204.47,0.03]
[1739189785969,0.063,204.52,204.47,8.64797714]
[1739189787574,0.97995652,204.52,204.47,0.03]
[1739189788273,81.0,204.51,204.48,20.0]
[1739189788479,81.0,204.51,204.49,8.61797714]
[1739189789871,81.0,204.51,204.48,8.61797714]
[1739189791062,81.0,204.51,204.49,8.61797714]
[1739189791269,81.0,204.51,204.5,8.61797714]
[1739189795658,81.0,204.51,204.5,5.51396386]
[1739189796377,0.063,204.52,204.5,5.51396386]
[1739189796557,0.063,204.52,204.51,5.51396386]
[1739189800279,0.063,204.52,204.5,5.51396386]
[1739189800580,0.063,204.52,204.49,25.51396386]
[1739189801677,0.063,204.52,204.49,20.0]
[1739189804672,0.063,204.52,204.48,0.03]
[1739189805982,0.063,204.52,204.5,5.51396386]
[1739189806282,0.063,204.52,204.51,5.51396386]
[1739189809879,0.063,204.52,204.51,20.17679239]
[1739189810084,0.063,204.52,204.51,20.58791362]
[1739189811607,0.063,204.55,204.54,21.0]
[1739189811776,0.063,204.55,204.54,26.51396386]
[1739189812310,0.063,204.55,204.54,25.51396386]
[1739189814700,0.063,204.56,204.55,6.51396386]
[1739189817677,0.063,204.56,204.55,22.38740621]
[1739189819995,0.063,204.56,204.55,23.59270352]
[1739189820492,0.063,204.56,204.55,20.17679239]
[1739189822297,0.063,204.56,204.55,19.17679239]
[1739189822700,0.063,204.56,204.55,5.51396386]
[1739189823303,0.063,204.56,204.51,5.51396386]
[1739189823688,0.063,204.56,204.53,5.51396386]
[1739189824915,0.063,204.56,204.52,5.51396386]
[1739189825208,0.063,204.56,204.53,5.51396386]
[1739189825581,0.063,204.56,204.54,5.51396386]
[1739189826194,0.063,204.56,204.55,5.51396386]
[1739189826408,0.063,204.56,204.54,5.51396386]
[1739189827877,0.063,204.57,204.55,19.17679239]
[1739189828199,0.063,204.62,204.59,20.0]
[1739189828414,0.063,204.62,204.6,5.51396386]
[1739189828583,0.063,204.62,204.59,20.0]
[1739189829187,81.0,204.61,204.56,5.51396386]
[1739189829514,81.0,204.61,204.54,25.54396386]
[1739189829714,81.0,204.6,204.56,8.61223982]
[1739189830625,81.0,204.6,204.58,8.61223982]
[1739189831534,81.0,204.6,204.59,8.61223982]
[1739189831825,0.063,204.62,204.59,8.61223982]
[1739189832027,0.063,204.62,204.61,8.61223982]
[1739189835828,0.063,204.62,204.59,8.61223982]
[1739189836028,0.063,204.62,204.58,8.61223982]
[1739189836431,0.063,204.62,204.59,8.61223982]
[1739189837910,81.063,204.62,204.59,8.61223982]
[1739189838121,81.063,204.62,204.58,8.61223982]
[1739189838326,81.063,204.62,204.56,8.61223982]
[1739189839812,81.063,204.62,204.57,8.61223982]
[1739189840012,81.063,204.62,204.59,0.03]
[1739189842134,1.6665,204.61,204.59,0.03]
[1739189843942,81.0,204.6,204.59,0.03]
[1739189845719,1.6665,204.61,204.59,0.03]
[1739189846713,11.19533605,204.61,204.59,0.03]
[1739189846914,8.61223982,204.6,204.59,0.03]
[1739189848282,13.49973982,204.6,204.59,0.03]
[1739189849932,8.61223982,204.6,204.59,0.03]
[1739189851539,13.49973982,204.6,204.59,0.03]
[1739189852851,8.61223982,204.6,204.59,0.03]
[1739189855654,5.51272354,204.6,204.59,0.03]
[1739189857328,10.40022354,204.6,204.59,0.03]
[1739189860350,5.51272354,204.6,204.59,0.03]
[1739189862254,24.06305207,204.6,204.59,0.03]
[1739189862461,46.11394623,204.6,204.59,0.03]
[1739189862756,60.83394623,204.6,204.59,0.03]
[1739189863554,60.89694623,204.6,204.59,0.03]
[1739189864152,19.05006207,204.55,204.54,0.03]
[1739189864456,21.52669696,204.55,204.54,0.03]
[1739189866147,26.54088696,204.55,204.54,0.03]
[1739189869949,48.90468696,204.55,204.54,0.03]
[1739189872470,48.90468696,204.55,204.54,0.0001]
[1739189876561,48.90468696,204.55,204.48,0.03]
[1739189876562,20.0,204.5,204.48,0.03]
[1739189876752,87.42990959,204.49,204.48,0.03]
[1739189877459,43.14373228,204.49,204.48,0.03]
[1739189877846,42.14373228,204.49,204.48,0.03]
[1739189878645,48.03393228,204.49,204.48,0.03]
[1739189878863,29.38282853,204.48,204.47,0.03]
[1739189879063,13.66282853,204.43,204.38,0.03]
[1739189879365,5.51272354,204.39,204.38,0.03]
[1739189881453,10.40532354,204.39,204.38,0.03]
[1739189883875,25.06815207,204.39,204.38,0.03]
[1739189884075,25.98607964,204.39,204.38,0.03]
[1739189884374,48.0369738,204.39,204.38,0.03]
[1739189885577,25.98607964,204.39,204.38,0.03]
[1739189885876,24.98607964,204.39,204.38,0.03]
[1739189886173,0.91792757,204.39,204.38,0.03]
[1739189887071,6.43065111,204.39,204.38,0.03]
[1739189887281,11.57423111,204.39,204.38,0.03]
[1739189888172,6.43065111,204.39,204.38,0.03]
[1739189888375,0.91767118,204.42,204.38,0.03]
[1739189889267,13.72582853,204.47,204.4,5.51272354]
[1739189889268,0.9174088,204.46,204.4,5.51272354]
[1739189891672,0.9174088,204.46,204.4,8.62396373]
[1739189891864,8.62396373,204.45,204.38,0.03]
[1739189892383,4.8909,204.46,204.38,0.03]
[1739189892384,8.62396373,204.43,204.38,0.03]
[1739189892678,0.91750866,204.42,204.38,0.03]
[1739189892870,89.62396373,204.41,204.38,0.03]
[1739189893067,8.62396373,204.39,204.38,0.03]
[1739189894083,9.54162065,204.41,204.38,0.03]
[1739189895384,8.62396373,204.4,204.38,0.03]
[1739189895788,0.91758276,204.39,204.38,0.03]
[1739189896170,0.91758444,204.4,204.38,0.03]
[1739189896586,0.91758482,204.41,204.38,0.03]
[1739189896890,8.62396373,204.45,204.38,0.03]
[1739189897373,81.0,204.44,204.39,8.62396373]
[1739189899107,81.0,204.43,204.39,8.62396373]
[1739189899269,81.0,204.43,204.4,8.62396373]
[1739189899573,81.0,204.43,204.41,8.62396373]
[1739189899773,81.0,204.43,204.4,8.62396373]
[1739189899986,81.0,204.43,204.39,8.62396373]
[1739189900198,81.0,204.43,204.38,0.03]
[1739189900392,89.62396373,204.42,204.38,0.03]
[1739189900573,0.91757344,204.41,204.38,0.03]
[1739189901104,8.62396373,204.39,204.38,0.03]
[1739189901270,22.28679226,204.39,204.38,0.03]
[1739189902799,28.097192,204.39,204.38,0.03]
[1739189903675,9.54176347,204.39,204.38,0.03]
[1739189904001,28.097192,204.39,204.38,0.03]
[1739189905888,42.817192,204.39,204.38,0.03]
[1739189910013,0.91779974,204.39,204.38,0.03]
[1739189910719,9.54176347,204.39,204.38,0.03]
[1739189911397,0.91765243,204.4,204.38,0.03]
[1739189911618,0.91755706,204.41,204.38,0.03]
[1739189912524,0.91754405,204.43,204.39,8.62396373]
[1739189913540,0.91743404,204.45,204.39,8.62396373]
[1739189913715,8.62396373,204.42,204.38,0.03]
[1739189913911,9.54155397,204.41,204.38,0.03]
[1739189914120,0.91759024,204.41,204.38,0.03]
[1739189914432,8.62396373,204.43,204.38,0.03]
[1739189914640,0.91747666,204.42,204.38,0.03]
[1739189916342,0.91747033,204.44,204.39,8.62396373]
[1739189916714,0.91747033,204.44,204.38,8.65396373]
[1739189916930,9.54143406,204.44,204.38,0.03]
[1739189918244,18.49890746,204.39,204.38,0.03]
[1739189918537,8.62396373,204.37,204.34,0.03]
[1739189918745,8.62396373,204.35,204.34,0.03]
[1739189919444,22.28679226,204.35,204.34,0.03]
[1739189920424,27.18029226,204.35,204.34,0.03]
[1739189920836,29.09835088,204.35,204.34,0.03]
[1739189921921,43.81835088,204.35,204.34,0.03]
[1739189922123,13.66282853,204.31,204.27,0.03]
[1739189922340,27.18199226,204.28,204.27,0.03]
[1739189922540,28.10029793,204.28,204.27,0.03]
[1739189923052,9.5422694,204.28,204.27,0.03]
[1739189923255,0.91830567,204.28,204.27,0.03]
[1739189923569,9.5422694,204.28,204.27,0.03]
[1739189924540,14.4374694,204.28,204.27,0.03]
[1739189925553,9.5422694,204.28,204.27,0.03]
[1739189926651,14.4374694,204.28,204.27,0.03]
[1739189927572,28.10029793,204.28,204.27,0.03]
[1739189931872,14.6884494,204.28,204.27,0.03]
[1739189933646,0.25098,204.27,204.26,0.03]
[1739189933965,0.25098,204.25,204.17,0.03]
[1739189934274,8.62396373,204.2,204.17,0.03]
[1739189934446,8.62396373,204.22,204.17,0.03]
[1739189934866,8.62396373,204.23,204.17,0.03]
[1739189935085,0.91839743,204.22,204.17,0.03]
[1739189935448,9.54236116,204.22,204.17,0.03]
[1739189936573,5.81382181,204.27,204.2,8.62396373]
[1739189936775,14.43778554,204.27,204.2,8.62396373]
[1739189937077,89.62396373,204.26,204.19,8.62396373]
[1739189937253,0.91824768,204.25,204.19,8.62396373]
[1739189937665,0.91824768,204.25,204.17,0.03]
[1739189937666,0.91824768,204.25,204.18,8.62396373]
[1739189938474,13.66282853,204.18,204.17,0.03]
[1739189938778,14.58168761,204.18,204.17,0.03]
[1739189939776,6.06743908,204.18,204.17,0.03]
[1739189939974,0.91885908,204.18,204.17,0.03]
[1739189940370,5.81645908,204.18,204.17,0.03]
[1739189940679,0.91885908,204.18,204.17,0.03]
[1739189941259,81.91859441,204.24,204.17,0.03]
[1739189941485,81.91859441,204.24,204.19,8.62396373]
[1739189941669,86.81479441,204.24,204.17,8.65396373]
[1739189941856,0.25098,204.22,204.17,0.03]
[1739189942176,9.54250848,204.21,204.17,0.03]
[1739189943295,0.91847116,204.22,204.17,0.03]
[1739189943466,90.54243489,204.23,204.17,0.03]
[1739189944278,8.62396373,204.21,204.17,0.03]
[1739189944475,9.54240151,204.21,204.17,0.03]
[1739189944790,90.54241863,204.23,204.17,0.03]
[1739189945101,81.0,204.22,204.17,0.03]
[1739189945771,81.0,204.21,204.17,8.65396373]
[1739189946882,81.0,204.21,204.17,0.03]
[1739189947393,81.91837073,204.2,204.17,0.03]
[1739189948065,81.0,204.2,204.17,0.03]
[1739189948693,81.0,204.2,204.17,8.65396373]
[1739189949188,8.62396373,204.25,204.2,20.0]
[1739189949189,81.0,204.25,204.2,20.0]
[1739189950067,81.0,204.25,204.19,8.62396373]
[1739189950290,81.0,204.25,204.21,8.62396373]
[1739189951509,81.0,204.25,204.24,8.62396373]
[1739189951803,0.063,204.26,204.24,10.16416373]
[1739189951984,0.063,204.26,204.25,8.62396373]
[1739189953280,0.063,204.26,204.25,22.03581226]
[1739189953618,0.063,204.26,204.25,28.40711226]
[1739189954699,80.96351533,204.32,204.25,28.40711226]
[1739189954877,80.96351533,204.32,204.29,8.62396373]
[1739189955996,80.96351533,204.32,204.3,8.62396373]
[1739189956169,0.063,204.33,204.3,8.62396373]
[1739189957295,0.063,204.33,204.29,8.62396373]
[1739189957511,0.063,204.33,204.28,28.62396373]
[1739189958001,8.62396373,204.32,204.25,6.3713]
[1739189958405,8.68696373,204.33,204.25,14.99526373]
[1739189958599,0.063,204.33,204.26,8.62396373]
[1739189960312,0.98085611,204.33,204.26,8.62396373]
[1739189960613,0.98085611,204.33,204.28,0.03]
[1739189961905,0.063,204.33,204.28,0.03]
[1739189962805,80.96351533,204.32,204.28,0.03]
[1739189964010,80.96351533,204.32,204.29,20.0]
[1739189964190,80.96351533,204.32,204.28,0.03]
[1739189968614,80.96351533,204.31,204.28,0.03]
[1739189972929,80.96351533,204.31,204.29,28.62396373]
[1739189975226,0.063,204.33,204.3,8.62396373]
[1739189975412,0.063,204.33,204.28,21.03]
[1739189975413,0.063,204.33,204.32,8.62396373]
[1739189975729,0.063,204.33,204.3,8.62396373]
[1739189977409,0.063,204.33,204.32,22.28679226]
[1739189979633,0.063,204.33,204.32,23.87919226]
[1739189980638,0.063,204.33,204.32,10.21636373]
[1739189981440,0.063,204.33,204.32,10.46734373]
[1739189983529,0.063,204.33,204.32,10.21636373]
[1739189983733,0.063,204.33,204.3,8.62396373]
[1739189984221,0.063,204.33,204.28,8.65396373]
[1739189985547,0.063,204.33,204.31,20.0]
[1739189986746,0.063,204.33,204.28,8.55447905]
[1739189986939,9.60483429,204.33,204.26,8.62396373]
[1739189987145,9.60483429,204.33,204.24,8.62396373]
[1739189987952,9.60483429,204.33,204.27,20.0]
[1739189990753,8.68696373,204.33,204.26,8.62396373]
[1739189990954,0.063,204.33,204.27,8.62396373]
[1739189991337,0.063,204.33,204.28,8.62396373]
[1739189992534,0.063,204.33,204.29,8.62396373]
[1739189994338,0.063,204.33,204.3,8.62396373]
[1739189996555,0.063,204.33,204.27,8.62396373]
[1739189996740,8.68696373,204.33,204.28,20.0]
[1739189997156,8.62396373,204.32,204.28,20.0]
[1739189997456,8.62396373,204.32,204.27,20.0]
[1739189997657,8.68696373,204.33,204.28,20.0]
[1739189997861,0.063,204.33,204.28,20.0]
[1739189998365,80.96351533,204.32,204.28,20.0]
[1739190000564,80.96351533,204.31,204.28,20.0]
[1739190000764,8.62396373,204.3,204.24,0.03]
[1739190000950,8.62396373,204.28,204.24,0.03]
[1739190001653,8.62396373,204.3,204.24,0.03]
[1739190002253,89.58747906,204.31,204.24,0.03]
[1739190002457,80.96351533,204.31,204.27,8.62396373]
[1739190003168,80.96351533,204.31,204.26,28.62396373]
[1739190003671,80.96351533,204.31,204.26,25.52620697]
[1739190004264,0.063,204.33,204.26,25.52620697]
[1739190004469,0.063,204.33,204.27,5.52620697]
[1739190004771,0.063,204.33,204.3,5.52620697]
[1739190007365,0.063,204.33,204.31,0.25098]
[1739190007570,0.063,204.33,204.32,5.52620697]
[1739190008975,0.063,204.33,204.29,5.65169697]
[1739190010274,0.063,204.33,204.27,0.03]
[1739190010481,5.52620697,204.3,204.27,0.03]
[1739190010780,5.52620697,204.28,204.27,0.03]
[1739190011153,6.44431674,204.28,204.27,0.03]
[1739190013670,9.56105851,204.28,204.27,0.03]
[1739190019255,8.64294874,204.29,204.27,0.03]
[1739190020078,8.64294874,204.28,204.27,0.03]
[1739190021681,8.64294874,204.29,204.27,0.03]
[1739190021990,8.64294874,204.31,204.27,0.03]
[1739190022568,10.22354874,204.32,204.27,0.03]
[1739190022764,1.5806,204.32,204.27,0.03]
[1739190023592,10.22354874,204.32,204.27,0.03]
[1739190023784,8.64294874,204.3,204.27,0.03]
[1739190024381,10.22354874,204.32,204.27,0.03]
[1739190025385,1.5806,204.32,204.27,0.03]
[1739190025778,9.62389558,204.33,204.27,0.03]
[1739190026271,81.0,204.32,204.27,0.03]
[1739190026889,89.64294874,204.32,204.27,0.03]
[1739190027475,9.56085661,204.31,204.27,0.03]
[1739190027679,8.64294874,204.3,204.27,0.03]
[1739190029000,8.64294874,204.31,204.27,0.03]
[1739190029989,81.0,204.32,204.27,0.03]
[1739190030988,8.64294874,204.31,204.27,0.03]
[1739190031180,89.64294874,204.31,204.27,0.03]
[1739190032393,0.063,204.3,204.27,0.03]
[1739190033096,0.063,204.3,204.27,28.67294874]
[1739190034504,0.063,204.3,204.29,8.64294874]
[1739190035395,0.063,204.3,204.28,8.64294874]
[1739190035597,0.063,204.3,204.27,25.55581292]
[1739190035899,0.063,204.3,204.27,20.03]
[1739190036598,0.063,204.3,204.27,25.55581292]
[1739190037189,0.063,204.3,204.28,20.0]
[1739190039995,0.063,204.3,204.27,0.03]
[1739190042896,81.0,204.29,204.27,0.03]
[1739190048731,81.0,204.29,204.28,5.52581292]
[1739190050100,0.063,204.3,204.28,19.18864145]
[1739190050305,0.063,204.3,204.29,19.18864145]
[1739190052421,0.063,204.3,204.29,5.52581292]
[1739190052824,0.063,204.3,204.29,5.77679292]
[1739190053030,0.063,204.3,204.29,5.52581292]
[1739190053405,0.063,204.3,204.28,5.52581292]
[1739190053816,0.063,204.3,204.27,25.55581292]
[1739190054014,0.063,204.3,204.27,0.03]
[1739190054737,0.063,204.3,204.29,20.0]
[1739190055227,0.063,204.3,204.28,25.52581292]
[1739190055622,0.063,204.3,204.29,5.52581292]
[1739190056831,0.063,204.3,204.28,25.52581292]
[1739190058430,0.063,204.3,204.29,5.52581292]
[1739190059534,0.063,204.3,204.29,19.18864145]
[1739190060236,0.063,204.3,204.29,5.52581292]
[1739190062643,0.063,204.3,204.27,25.55581292]
[1739190063027,0.063,204.3,204.28,5.52581292]
[1739190063229,0.063,204.3,204.29,5.77679292]
[1739190063939,0.063,204.3,204.29,5.52581292]
[1739190064142,0.063,204.3,204.28,5.52581292]
[1739190064435,217.2086,204.29,204.27,0.03]
[1739190064641,28.79781165,204.28,204.27,0.03]
[1739190064825,28.79781165,204.28,204.24,0.03]
[1739190064826,20.0,204.25,204.24,0.03]
[1739190065141,19.18864145,204.25,204.24,0.03]
[1739190065646,39.18864145,204.25,204.24,0.03]
[1739190066235,25.52581292,204.25,204.24,0.03]
[1739190067643,28.64448728,204.25,204.24,0.03]
[1739190068144,8.64448728,204.25,204.24,0.03]
[1739190069049,8.64448728,204.25,204.07,9.08906965]
[1739190069050,1.25098,204.18,204.07,9.08906965]
[1739190069356,32.87066263,204.18,204.07,0.03]